bitfinex/quotes_SOLUSD_20250625
["timestamp","ask_amount","ask_price","bid_price","bid_amount"]
[1750861050848,6.86582582,145.65,145.54,6.8709633]
[1750861050849,18.64964886,145.64,145.54,6.8709633]
[1750861051053,18.64964886,145.64,145.57,15.23171961]
[1750861051229,18.64964886,145.64,145.58,15.23171961]
[1750861051765,15.23171961,145.63,145.58,15.23171961]
[1750861051931,26.0,145.65,145.59,15.23171961]
[1750861052258,15.23171961,145.62,145.54,17.17740827]
[1750861052443,18.64964886,145.64,145.54,17.17740827]
[1750861052644,15.23171961,145.62,145.54,17.17740827]
[1750861052843,18.64964886,145.64,145.58,15.23171961]
[1750861053059,26.0,145.65,145.59,15.23171961]
[1750861053358,26.0,145.65,145.6,15.23171961]
[1750861053359,15.23171961,145.65,145.6,15.23171961]
[1750861053954,44.64964886,145.67,145.54,17.17740827]
[1750861054151,15.23171961,145.66,145.61,15.23171961]
[1750861054343,15.23171961,145.66,145.62,6.86718857]
[1750861054961,15.23171961,145.65,145.62,6.86718857]
[1750861055250,15.23171961,145.65,145.54,24.04837157]
[1750861055459,25.51405852,145.68,145.54,24.04837157]
[1750861055460,15.23171961,145.63,145.54,24.04837157]
[1750861055759,15.23171961,145.63,145.59,15.23171961]
[1750861055959,25.51405852,145.68,145.54,24.04837157]
[1750861055960,25.51405852,145.68,145.61,15.23171961]
[1750861056254,25.51405852,145.68,145.54,58.40318811]
[1750861056255,15.23171961,145.67,145.63,15.23171961]
[1750861056455,15.23171961,145.67,145.57,26.0]
[1750861056756,15.23171961,145.67,145.62,15.23171961]
[1750861057353,18.64964886,145.7,145.63,6.86671702]
[1750861057556,15.23171961,145.69,145.65,15.23171961]
[1750861057748,15.23171961,145.7,145.66,15.23171961]
[1750861057953,21.32141961,145.71,145.63,24.03350957]
[1750861058170,44.54153731,145.74,145.67,15.23171961]
[1750861058466,44.54153731,145.74,145.63,24.03350957]
[1750861058467,15.23171961,145.7,145.66,15.23171961]
[1750861058635,15.23171961,145.71,145.67,15.23171961]
[1750861059267,18.64964886,145.73,145.63,17.16679255]
[1750861059475,15.23171961,145.68,145.61,6.86766018]
[1750861059771,15.23171961,145.67,145.62,15.23171961]
[1750861059959,15.23171961,145.66,145.62,15.23171961]
[1750861060171,15.23171961,145.65,145.61,15.23171961]
[1750861060452,15.23171961,145.65,145.57,17.17276192]
[1750861060712,15.23171961,145.64,145.59,15.23171961]
[1750861060855,15.23171961,145.65,145.6,15.23171961]
[1750861061236,22.09752132,145.65,145.6,15.23171961]
[1750861061443,15.23171961,145.65,145.61,15.23171961]
[1750861061652,15.23171961,145.66,145.61,15.23171961]
[1750861061851,15.23171961,145.66,145.57,24.04341553]
[1750861062067,15.23171961,145.66,145.62,15.23171961]
[1750861062251,15.23171961,145.67,145.62,15.23171961]
[1750861062449,15.23171961,145.67,145.57,24.04341553]
[1750861062649,15.23171961,145.67,145.63,15.23171961]
[1750861062859,15.23171961,145.66,145.57,24.04341553]
[1750861063164,24.02526084,145.68,145.6,22.09949623]
[1750861063464,15.23171961,145.63,145.59,15.23171961]
[1750861063662,24.02526084,145.68,145.59,15.23171961]
[1750861063960,15.23171961,145.65,145.57,24.04341553]
[1750861064161,18.64964886,145.67,145.57,6.86954729]
[1750861064361,15.23171961,145.62,145.58,15.23171961]
[1750861064774,15.23171961,145.64,145.6,15.23171961]
[1750861065153,70.44401654,145.69,145.63,15.23171961]
[1750861065356,27.98641508,145.68,145.62,15.23171961]
[1750861065558,15.23171961,145.66,145.62,15.23171961]
[1750861065885,15.23171961,145.66,145.61,15.23171961]
[1750861066187,20.57052966,145.74,145.64,15.23171961]
[1750861066483,15.23171961,145.7,145.66,15.23171961]
[1750861066693,27.98456303,145.73,145.6,25.63346153]
[1750861066694,15.23171961,145.71,145.6,25.63346153]
[1750861066867,17.70823364,145.7,145.6,25.63346153]
[1750861067184,15.23171961,145.69,145.65,15.23171961]
[1750861067362,18.64964886,145.73,145.66,15.23171961]
[1750861067570,15.23171961,145.71,145.66,15.23171961]
[1750861067873,15.23171961,145.71,145.67,15.23171961]
[1750861068216,47.12523885,145.7,145.62,15.23171961]
[1750861068363,17.7073096,145.69,145.64,15.23171961]
[1750861068552,15.23171961,145.69,145.65,15.23171961]
[1750861068878,44.64964886,145.7,145.61,15.23171961]
[1750861068879,2.47810763,145.68,145.61,15.23171961]
[1750861069053,44.64964886,145.7,145.59,6.86846682]
[1750861069054,15.23171961,145.67,145.59,6.86846682]
[1750861069258,15.23171961,145.66,145.62,15.23171961]
[1750861069458,22.09717031,145.66,145.62,15.23171961]
[1750861069880,15.23171961,145.64,145.57,6.86954729]
[1750861070080,15.23171961,145.62,145.58,15.23171961]
[1750861070276,15.23171961,145.61,145.57,15.23171961]
[1750861070659,15.23171961,145.59,145.54,15.23171961]
[1750861070859,41.91247559,145.64,145.54,15.23171961]
[1750861071076,15.23171961,145.59,145.55,15.23171961]
[1750861071286,15.23171961,145.58,145.54,15.23171961]
[1750861071586,15.23171961,145.56,145.5,6.87285223]
[1750861071759,6.86813186,145.6,145.54,15.23171961]
[1750861071961,6.86577411,145.65,145.58,15.23171961]
[1750861072166,2.47873829,145.64,145.6,15.23171961]
[1750861072385,2.47873829,145.64,145.61,15.23171961]
[1750861072564,2.47873829,145.64,145.6,15.23171961]
[1750861073173,17.7104579,145.64,145.6,15.23171961]
[1750861073373,15.23171961,145.64,145.6,15.23171961]
[1750861073576,6.86646896,145.64,145.58,6.86875138]
[1750861073898,6.86646896,145.64,145.49,1.6427]
[1750861073899,15.23171961,145.59,145.49,1.6427]
[1750861074101,15.23171961,145.61,145.56,15.23171961]
[1750861074395,15.23171961,145.61,145.5,54.05498281]
[1750861074574,68.68173166,145.64,145.56,15.23171961]
[1750861074890,15.23171961,145.61,145.57,15.23171961]
[1750861075090,15.23171961,145.6,145.51,26.0]
[1750861075390,15.23171961,145.6,145.5,24.05498281]
[1750861075391,15.23171961,145.56,145.52,15.23171961]
[1750861075778,0.68075598,145.62,145.55,15.23171961]
[1750861075779,6.86860361,145.59,145.55,15.23171961]
[1750861076089,15.23171961,145.61,145.56,15.23171961]
[1750861076284,6.86725486,145.62,145.52,24.05152678]
[1750861076285,15.23171961,145.6,145.52,6.87175768]
[1750861076482,25.51690372,145.62,145.53,15.23171961]
[1750861076483,15.23171961,145.58,145.53,15.23171961]
[1750861076690,15.23171961,145.58,145.5,6.87285223]
[1750861076994,15.23171961,145.57,145.5,6.87285223]
[1750861077301,18.64964886,145.61,145.49,8.5158287]
[1750861077467,15.23171961,145.58,145.53,22.10315505]
[1750861077681,2.4779114,145.6,145.55,15.23171961]
[1750861077682,15.23171961,145.6,145.55,15.23171961]
[1750861077891,15.23171961,145.6,145.56,15.23171961]
[1750861078072,51.51683743,145.62,145.56,15.23171961]
[1750861078273,15.23171961,145.61,145.57,15.23171961]
[1750861078679,15.23171961,145.62,145.58,15.23171961]
[1750861078881,15.23171961,145.62,145.53,24.05002404]
[1750861079194,15.23171961,145.62,145.58,15.23171961]
[1750861079572,15.23171961,145.62,145.58,22.10044668]
[1750861079778,15.23171961,145.63,145.59,15.23171961]
[1750861079982,50.20461948,145.66,145.61,15.23171961]
[1750861080183,15.23171961,145.62,145.58,15.23171961]
[1750861080512,15.23171961,145.59,145.54,15.23171961]
[1750861080676,15.23171961,145.55,145.45,17.18688835]
[1750861080877,44.64964886,145.55,145.45,6.87521485]
[1750861081372,15.23171961,145.5,145.43,6.87602502]
[1750861081578,15.23171961,145.5,145.42,6.0187]
[1750861081579,18.64964886,145.52,145.47,15.23171961]
[1750861081887,15.23171961,145.54,145.5,15.23171961]
[1750861082773,15.23171961,145.55,145.5,15.23171961]
[1750861082973,6.87143544,145.53,145.5,15.23171961]
[1750861083174,15.23171961,145.54,145.5,15.23171961]
[1750861083372,22.10236556,145.55,145.51,15.23171961]
[1750861083576,22.10188623,145.56,145.52,15.23171961]
[1750861083823,22.10188623,145.56,145.45,26.0]
[1750861083824,6.87016662,145.56,145.45,26.0]
[1750861084105,34.32651379,145.66,145.53,15.23171961]
[1750861084106,6.86718857,145.62,145.53,15.23171961]
[1750861084315,6.86718857,145.62,145.5,26.0]
[1750861084316,15.23171961,145.61,145.5,26.0]
[1750861084481,18.64964886,145.61,145.56,15.23171961]
[1750861084681,25.51683743,145.62,145.57,15.23171961]
[1750861084875,25.51683743,145.62,145.59,15.23171961]
[1750861084876,6.86718857,145.62,145.59,15.23171961]
[1750861085111,6.86677157,145.63,145.6,15.23171961]
[1750861085275,6.86677157,145.63,145.53,32.40991774]
[1750861085276,2.49149022,145.63,145.54,24.04837157]
[1750861085475,6.86625275,145.64,145.54,24.04837157]
[1750861085680,18.64964886,145.67,145.54,24.04837157]
[1750861085681,24.58960599,145.66,145.54,24.04837157]
[1750861085883,15.23171961,145.64,145.6,15.23171961]
[1750861086085,22.09702236,145.66,145.62,15.23171961]
[1750861086281,6.86442577,145.68,145.65,15.23171961]
[1750861086480,15.23171961,145.67,145.57,26.0]
[1750861086686,15.23171961,145.63,145.55,1.6222]
[1750861087023,15.23171961,145.61,145.54,6.8709633]
[1750861087181,15.23171961,145.6,145.56,15.23171961]
[1750861087522,6.86768661,145.61,145.52,36.87190764]
[1750861087697,6.86768661,145.61,145.5,6.87285223]
[1750861087698,19.33040484,145.6,145.5,6.87285223]
[1750861087881,15.23171961,145.57,145.52,15.23171961]
[1750861088227,15.23171961,145.56,145.52,15.23171961]
[1750861088519,56.51040484,145.6,145.45,17.18710435]
[1750861088520,15.23171961,145.54,145.45,17.18710435]
[1750861088807,15.23171961,145.51,145.46,6.87474219]
[1750861088974,15.23171961,145.51,145.4,10.0]
[1750861088975,18.64964886,145.52,145.44,15.23171961]
[1750861089177,15.23171961,145.49,145.37,73.96274426]
[1750861089386,6.87204175,145.52,145.47,15.23171961]
[1750861089590,15.23171961,145.51,145.42,15.23171961]
[1750861089807,15.23171961,145.52,145.42,15.23171961]
[1750861090007,52.35171961,145.54,145.49,15.23171961]
[1750861090189,37.12,145.54,145.51,15.23171961]
[1750861090391,52.35171961,145.54,145.45,26.0]
[1750861090580,15.23171961,145.53,145.4,17.19394773]
[1750861090780,18.64964886,145.53,145.4,17.19394773]
[1750861090987,15.23171961,145.5,145.4,17.19394773]
[1750861091214,15.23171961,145.5,145.46,15.23171961]
[1750861091388,6.87197381,145.52,145.46,15.23171961]
[1750861091588,0.5,145.49,145.42,15.23171961]
[1750861091903,23.74964838,145.59,145.48,15.23171961]
[1750861092203,2.4921606,145.55,145.42,26.0]
[1750861092393,15.23171961,145.54,145.49,15.23171961]
[1750861092593,18.64964886,145.52,145.42,26.0]
[1750861092797,15.23171961,145.5,145.4,17.19394773]
[1750861093015,15.23171961,145.49,145.45,15.23171961]
[1750861093317,18.64964886,145.52,145.43,15.23171961]
[1750861093318,15.23171961,145.48,145.43,15.23171961]
[1750861093516,6.8723799,145.51,145.38,6.87852524]
[1750861093517,15.23171961,145.47,145.38,24.07483835]
[1750861093715,15.23171961,145.46,145.42,15.23171961]
[1750861093897,15.23171961,145.47,145.43,15.23171961]
[1750861094215,15.23171961,145.47,145.38,24.07483835]
[1750861094402,15.23171961,145.47,145.43,15.23171961]
[1750861094607,15.23171961,145.46,145.42,15.23171961]
[1750861094929,22.10642979,145.47,145.43,15.23171961]
[1750861095223,15.23171961,145.45,145.38,6.87852524]
[1750861095424,6.87471018,145.47,145.43,15.23171961]
[1750861095596,6.87471018,145.47,145.37,28.50835441]
[1750861095597,6.87471018,145.47,145.44,15.23171961]
[1750861096322,6.8723799,145.51,145.46,15.23171961]
[1750861096624,13.11750369,145.52,145.48,15.23171961]
[1750861096829,13.11750369,145.52,145.42,15.23171961]
[1750861096830,21.47721961,145.52,145.42,15.23171961]
[1750861097123,28.34917901,145.52,145.43,6.87616035]
[1750861097323,13.1174594,145.52,145.48,15.23171961]
[1750861097621,18.64964886,145.51,145.43,6.87616035]
[1750861097808,18.64964886,145.51,145.47,15.23171961]
[1750861098015,18.64964886,145.51,145.43,6.87616035]
[1750861098016,15.23171961,145.5,145.46,15.23171961]
[1750861098206,15.23171961,145.5,145.4,43.19300185]
[1750861098207,15.23171961,145.49,145.44,15.23171961]
[1750861098709,6.87379708,145.48,145.45,15.23171961]
[1750861098912,22.10551669,145.48,145.38,26.0]
[1750861099116,22.10551669,145.48,145.37,21.6294881]
[1750861099117,15.23171961,145.46,145.42,15.23171961]
[1750861099327,18.64964886,145.45,145.37,9.3694881]
[1750861099623,15.23171961,145.46,145.42,15.23171961]
[1750861099821,33.88136847,145.47,145.37,16.24838215]
[1750861100119,33.88136847,145.47,145.43,15.23171961]
[1750861100318,6.87379708,145.48,145.45,15.23171961]
[1750861100616,6.87379708,145.48,145.44,15.23171961]
[1750861100817,6.87379708,145.48,145.37,9.3694881]
[1750861100818,15.23171961,145.47,145.43,15.23171961]
[1750861100995,15.23171961,145.45,145.4,15.23171961]
[1750861101195,15.23171961,145.45,145.37,9.3694881]
[1750861101196,15.23171961,145.43,145.37,16.24847996]
[1750861101404,15.23171961,145.43,145.38,15.23171961]
[1750861101602,15.23171961,145.42,145.38,15.23171961]
[1750861101797,0.5,145.44,145.37,16.2483837]
[1750861102017,15.23171961,145.43,145.37,9.3694881]
[1750861102223,15.23171961,145.42,145.37,24.60120771]
[1750861102615,6.87710611,145.41,145.37,24.60120771]
[1750861102818,0.5,145.44,145.4,15.23171961]
[1750861103025,26.0,145.43,145.37,9.3694881]
[1750861103235,15.23171961,145.41,145.37,9.3694881]
[1750861103438,15.23171961,145.43,145.39,15.23171961]
[1750861103945,17.18681403,145.47,145.37,9.3694881]
[1750861103946,4.15903631,145.51,145.41,15.23171961]
[1750861104117,4.15903631,145.51,145.45,15.23171961]
[1750861104118,24.05543615,145.5,145.45,15.23171961]
[1750861104326,6.87244704,145.51,145.42,15.23171961]
[1750861104506,49.85755514,145.52,145.48,15.23171961]
[1750861105009,49.85755514,145.52,145.44,6.87560261]
[1750861105010,65.08927475,145.52,145.44,6.87560261]
[1750861105214,15.23171961,145.5,145.46,15.23171961]
[1750861105411,15.23171961,145.48,145.44,15.23171961]
[1750861105646,18.64964886,145.51,145.41,6.87710611]
[1750861105810,67.03732424,145.52,145.37,21.2694881]
[1750861105811,33.88136847,145.48,145.37,21.2694881]
[1750861106135,15.23171961,145.45,145.37,21.2694881]
[1750861106345,15.23171961,145.43,145.37,21.2694881]
[1750861106508,15.23171961,145.43,145.38,15.23171961]
[1750861106711,6.87568756,145.44,145.37,9.3694881]
[1750861107033,22.10740717,145.44,145.4,15.23171961]
[1750861107239,15.23171961,145.42,145.37,9.3694881]
[1750861107418,43.8751453,145.46,145.41,15.23171961]
[1750861107735,37.0,145.46,145.43,15.23171961]
[1750861108031,15.23171961,145.47,145.42,15.23171961]
[1750861108251,6.87393088,145.48,145.44,15.23171961]
[1750861108427,59.08470089,145.5,145.46,15.23171961]
[1750861108733,22.10470089,145.5,145.46,15.23171961]
[1750861108934,6.87298128,145.5,145.43,6.87605427]
[1750861109112,6.87298128,145.5,145.45,15.23171961]
[1750861109312,22.10470089,145.5,145.45,15.23171961]
[1750861109538,22.10470089,145.5,145.46,15.23171961]
[1750861109539,6.87298128,145.5,145.46,15.23171961]
[1750861109752,6.87298128,145.5,145.43,6.87605427]
[1750861109753,22.10424683,145.51,145.47,15.23171961]
[1750861110037,6.2455,145.52,145.49,15.23171961]
[1750861110038,13.11751143,145.52,145.49,15.23171961]
[1750861110253,15.23171961,145.5,145.43,6.87605427]
[1750861110417,15.23171961,145.46,145.42,15.23171961]
[1750861110617,22.10551669,145.48,145.44,15.23171961]
[1750861110817,15.23171961,145.49,145.44,15.23171961]
[1750861111042,15.23171961,145.5,145.39,43.19513033]
[1750861111244,42.70297852,145.51,145.39,43.19513033]
[1750861111245,15.23171961,145.49,145.45,15.23171961]
[1750861111416,15.23171961,145.49,145.39,43.19513033]
[1750861111613,42.70297852,145.51,145.45,15.23171961]
[1750861112122,6.2455,145.52,145.39,43.19513033]
[1750861112123,6.2455,145.52,145.47,15.23171961]
[1750861112325,6.2455,145.52,145.48,15.23171961]
[1750861112741,33.88136847,145.51,145.46,15.23171961]
[1750861112947,18.64964886,145.51,145.45,15.23171961]
[1750861113132,18.64964886,145.51,145.4,42.36842682]
[1750861113133,15.23171961,145.48,145.4,35.97152682]
[1750861113330,15.23171961,145.48,145.44,15.23171961]
[1750861113650,15.23171961,145.48,145.4,18.77757909]
[1750861113853,15.23171961,145.47,145.4,11.9]
[1750861114027,81.48964886,145.51,145.4,11.9]
[1750861114028,6.87521485,145.45,145.42,15.23171961]
[1750861114343,6.87521485,145.45,145.41,15.23171961]
[1750861114519,6.87521485,145.45,145.38,6.87839694]
[1750861114725,6.87521485,145.45,145.41,15.23171961]
[1750861114921,15.23171961,145.44,145.37,9.3694881]
[1750861115123,15.23171961,145.43,145.39,15.23171961]
[1750861115652,33.88136847,145.44,145.39,15.23171961]
[1750861115965,15.23171961,145.44,145.4,15.23171961]
[1750861116127,6.87521485,145.45,145.41,15.23171961]
[1750861116327,22.10693446,145.45,145.41,15.23171961]
[1750861116534,22.10693446,145.45,145.37,9.3694881]
[1750861116535,15.23171961,145.43,145.39,15.23171961]
[1750861117157,33.88136847,145.44,145.39,15.23171961]
[1750861117565,15.23171961,145.4,145.37,9.3694881]
[1750861117933,18.64964886,145.42,145.37,9.3694881]
[1750861118130,24.06987139,145.41,145.37,9.3694881]
[1750861118450,33.88136847,145.4,145.37,9.3694881]
[1750861118627,15.23171961,145.39,145.37,9.3694881]
[1750861118824,15.23171961,145.4,145.37,9.3694881]
[1750861119044,18.64964886,145.4,145.37,9.3694881]
[1750861119661,24.06987139,145.41,145.37,24.60120771]
[1750861120025,39.301591,145.41,145.37,24.60120771]
[1750861120445,39.301591,145.41,145.37,9.3694881]
[1750861120648,15.23171961,145.39,145.37,9.3694881]
[1750861120844,15.23171961,145.38,145.37,9.3694881]
[1750861121144,60.72987139,145.41,145.37,9.3694881]
[1750861121345,33.88136847,145.38,145.37,9.3694881]
[1750861121730,18.64964886,145.38,145.37,9.3694881]
[1750861121932,59.88136847,145.38,145.37,9.3694881]
[1750861122138,59.88136847,145.38,145.22,6.4188]
[1750861122139,44.64964886,145.34,145.2,8.54114086]
[1750861122357,6.88373373,145.27,145.22,30.0]
[1750861122531,39.32478768,145.27,145.2,1.6544]
[1750861122847,24.09306807,145.27,145.22,15.23171961]
[1750861123052,24.09306807,145.27,145.24,15.23171961]
[1750861123351,6.88373373,145.27,145.2,1.6544]
[1750861123527,15.23171961,145.32,145.2,8.54135174]
[1750861123724,55.46964886,145.35,145.2,23.77307135]
[1750861123959,55.46964886,145.35,145.27,15.23171961]
[1750861123960,15.23171961,145.31,145.27,15.23171961]
[1750861124161,18.64964886,145.33,145.27,15.23171961]
[1750861124363,6.88136526,145.32,145.29,15.23171961]
[1750861124658,6.88136526,145.32,145.23,26.0]
[1750861124865,6.8799621,145.35,145.31,15.23171961]
[1750861125242,15.23171961,145.36,145.32,15.23171961]
[1750861125442,48.9,145.39,145.23,26.0]
[1750861125443,37.0,145.39,145.29,1.6305]
[1750861125746,15.23171961,145.38,145.29,1.6305]
[1750861125944,15.23171961,145.36,145.29,1.6305]
[1750861126243,24.07495489,145.38,145.29,1.6305]
[1750861126244,18.64964886,145.37,145.34,15.23171961]
[1750861126447,6.87864178,145.38,145.36,15.23171961]
[1750861126642,6.87864178,145.38,145.35,15.23171961]
[1750861126838,43.87811444,145.39,145.36,15.23171961]
[1750861127149,43.87811444,145.39,145.35,15.23171961]
[1750861127457,43.87811444,145.39,145.3,6.88223091]
[1750861127640,43.87811444,145.39,145.36,15.23171961]
[1750861127641,37.0,145.39,145.36,15.23171961]
[1750861127836,6.87767371,145.4,145.31,15.23171961]
[1750861128038,0.5,145.38,145.35,15.23171961]
[1750861128278,15.73171961,145.38,145.3,6.88223091]
[1750861128555,6.87899841,145.37,145.33,15.23171961]
[1750861128761,6.87899841,145.37,145.3,6.88223091]
[1750861129254,22.61039425,145.38,145.34,15.23171961]
[1750861129450,33.88136847,145.37,145.29,1.6305]
[1750861129759,24.57498775,145.38,145.24,17.21254489]
[1750861129760,15.23171961,145.34,145.3,15.23171961]
[1750861129958,18.64964886,145.37,145.29,15.23171961]
[1750861130147,15.23171961,145.33,145.24,14.97271578]
[1750861130349,6.88183882,145.31,145.28,15.23171961]
[1750861130650,6.88183882,145.31,145.24,8.0877]
[1750861130845,6.88183882,145.31,145.24,14.97279068]
[1750861131039,22.11355843,145.31,145.24,1.6276]
[1750861131241,15.23171961,145.3,145.26,15.23171961]
[1750861131443,6.88183882,145.31,145.24,1.6276]
[1750861131855,6.88183882,145.31,145.28,15.23171961]
[1750861132156,6.88183882,145.31,145.24,1.6276]
[1750861132157,37.08,145.33,145.3,15.23171961]
[1750861132354,6.87947165,145.36,145.32,15.23171961]
[1750861132557,15.23171961,145.34,145.3,15.23171961]
[1750861132854,15.23171961,145.33,145.29,15.23171961]
[1750861133028,15.23171961,145.33,145.24,1.6276]
[1750861133228,15.23171961,145.33,145.29,15.23171961]
[1750861133532,18.64964886,145.29,145.2,6.1763]
[1750861133734,15.23171961,145.28,145.2,6.1763]
[1750861133963,15.23171961,145.28,145.24,15.23171961]
[1750861134152,18.64964886,145.29,145.24,15.23171961]
[1750861134454,24.09140968,145.28,145.2,6.1763]
[1750861134637,39.32312929,145.28,145.24,15.23171961]
[1750861134827,6.88325991,145.28,145.24,15.23171961]
[1750861135035,88.63585584,145.31,145.27,15.23171961]
[1750861135036,6.88231245,145.3,145.27,15.23171961]
[1750861135230,6.8820018,145.31,145.2,45.51265947]
[1750861135452,0.5,145.28,145.2,30.28093986]
[1750861135652,0.5,145.28,145.24,15.23171961]
[1750861135861,15.23171961,145.29,145.25,15.23171961]
[1750861136052,15.23171961,145.29,145.2,13.06330901]
[1750861136053,6.8820018,145.31,145.28,15.23171961]
[1750861136335,33.88136847,145.3,145.2,13.06330901]
[1750861136535,6.88278615,145.29,145.2,13.06330901]
[1750861136739,6.88278615,145.29,145.17,23.704]
[1750861136740,6.2275,145.28,145.17,23.704]
[1750861136938,44.64964886,145.24,145.17,23.704]
[1750861137152,26.0,145.2,145.17,23.704]
[1750861137353,21.12466884,145.19,145.17,2.0376]
[1750861137536,26.0,145.15,145.0,24.13726504]
[1750861137738,18.64964886,145.14,145.0,6.89655172]
[1750861137941,18.64964886,145.14,144.99,6.89666434]
[1750861137942,26.0,145.11,144.99,6.89666434]
[1750861138175,26.0,145.09,144.99,6.89666434]
[1750861138461,26.0,145.09,145.03,15.23171961]
[1750861138462,18.64964886,145.08,145.03,15.23171961]
[1750861138644,18.64964886,145.09,144.99,16.89692529]
[1750861138837,15.23171961,145.09,144.99,16.89692529]
[1750861139038,18.64964886,145.12,144.99,16.89692529]
[1750861139039,19.33040484,145.12,144.99,16.89692529]
[1750861139234,18.64964886,145.11,145.01,10.0]
[1750861139438,18.64964886,145.11,145.09,15.23171961]
[1750861139740,22.12182208,145.14,145.07,6.2285]
[1750861139741,6.88562969,145.23,145.08,1.5919]
[1750861139959,18.64964886,145.21,145.08,1.5919]
[1750861140145,9.35788752,145.23,145.08,1.5919]
[1750861140146,6.88562969,145.23,145.09,15.23171961]
[1750861140463,6.88562969,145.23,145.09,39.35467777]
[1750861140668,6.88562969,145.23,145.09,6.89227376]
[1750861140669,18.64964886,145.22,145.09,6.89227376]
[1750861140840,26.0,145.19,145.09,6.89227376]
[1750861141443,18.64964886,145.22,145.09,39.35467777]
[1750861141779,6.88507926,145.25,145.19,15.23171961]
[1750861141979,9.35694048,145.27,145.11,10.0]
[1750861142261,43.28,145.31,145.23,15.23171961]
[1750861142262,6.88346441,145.28,145.23,15.23171961]
[1750861142439,6.88346441,145.28,145.13,18.64964886]
[1750861142635,6.88346441,145.28,145.12,24.11797133]
[1750861142841,15.23171961,145.2,145.12,6.89084895]
[1750861143057,26.0,145.25,145.08,1.5919]
[1750861143058,15.23171961,145.16,145.08,1.5919]
[1750861143239,18.64964886,145.23,145.08,1.5919]
[1750861143240,18.64964886,145.21,145.08,1.5919]
[1750861143439,15.23171961,145.17,145.12,15.23171961]
[1750861143669,15.23171961,145.16,145.08,1.5919]
[1750861143851,18.64964886,145.19,145.12,15.23171961]
[1750861144049,15.23171961,145.17,145.12,15.23171961]
[1750861144248,26.0,145.16,145.08,1.5919]
[1750861144448,26.0,145.16,145.09,15.23171961]
[1750861144449,6.88942473,145.15,145.09,15.23171961]
[1750861144760,0.6,145.15,145.08,8.48464586]
[1750861144969,0.6,145.15,145.12,15.23171961]
[1750861145268,0.6,145.15,145.08,8.48464586]
[1750861145561,0.6,145.15,145.11,15.23171961]
[1750861145865,25.53527855,145.23,145.14,15.23171961]
[1750861146162,6.88562969,145.23,145.17,15.23171961]
[1750861146352,15.23171961,145.21,145.17,15.23171961]
[1750861146763,22.11850545,145.21,145.16,15.23171961]
[1750861147059,15.23171961,145.2,145.15,15.23171961]
[1750861147263,6.88678584,145.21,145.15,15.23171961]
[1750861147448,15.23171961,145.2,145.16,15.23171961]
[1750861147761,26.0,145.22,145.16,15.23171961]
[1750861148067,15.23171961,145.21,145.16,15.23171961]
[1750861148271,18.64964886,145.23,145.17,15.23171961]
[1750861148455,6.88373373,145.27,145.2,15.23171961]
[1750861148660,61.98731657,145.29,145.21,15.23171961]
[1750861148966,6.88325991,145.28,145.14,6.0544]
[1750861149156,6.88325991,145.28,145.24,15.23171961]
[1750861149157,22.11497952,145.28,145.24,15.23171961]
[1750861149354,2.47350413,145.3,145.2,15.23171961]
[1750861149668,15.23171961,145.29,145.2,15.23171961]
[1750861149846,28.47350413,145.3,145.26,15.23171961]
[1750861149847,2.47350413,145.3,145.26,15.23171961]
[1750861150046,17.70522374,145.3,145.26,15.23171961]
[1750861150367,2.47350413,145.3,145.27,15.23171961]
[1750861150550,2.47350413,145.3,145.26,6.88411792]
[1750861150757,2.47350413,145.3,145.21,6.88657805]
[1750861151064,18.64964886,145.29,145.21,6.88657805]
[1750861151245,15.23171961,145.27,145.2,1.5637]
[1750861151444,26.0,145.27,145.2,15.23171961]
[1750861151850,26.0,145.27,145.21,15.23171961]
[1750861152161,15.23171961,145.25,145.15,6.88942473]
[1750861152369,15.23171961,145.24,145.2,15.23171961]
[1750861152683,22.11593104,145.26,145.21,15.23171961]
[1750861152846,6.88421143,145.26,145.17,6.88801816]
[1750861153046,15.23171961,145.25,145.21,15.23171961]
[1750861153288,2.47350413,145.3,145.22,15.23171961]
[1750861153482,15.23171961,145.29,145.18,26.0]
[1750861153647,2.47350413,145.3,145.25,15.23171961]
[1750861153852,2.47350413,145.3,145.27,15.23171961]
[1750861154578,2.47350413,145.3,145.21,24.10302319]
[1750861154883,2.47350413,145.3,145.29,15.23171961]
[1750861155267,2.47350413,145.3,145.24,26.0]
[1750861155465,2.47350413,145.3,145.29,15.23171961]
[1750861155669,2.47350413,145.3,145.25,26.0]
[1750861156185,2.47350413,145.3,145.29,15.23171961]
[1750861156677,2.47350413,145.3,145.29,6.88278615]
[1750861157059,2.47350413,145.3,145.29,22.11450576]
[1750861157881,2.47350413,145.3,145.26,6.88420762]
[1750861158380,2.47350413,145.3,145.29,15.23171961]
[1750861159370,2.47350413,145.3,145.25,6.88468158]
[1750861159567,2.47350413,145.3,145.27,15.23171961]
[1750861160081,2.47350413,145.3,145.25,6.88468158]
[1750861160263,2.47350413,145.3,145.27,15.23171961]
[1750861160674,2.47350413,145.3,145.28,15.23171961]
[1750861160985,2.47350413,145.3,145.29,15.23171961]